fUST/lending_fUST_20250705
["ID","MTS","AMOUNT","RATE_DAILY","PERIOD"]
[369670661,1751692251230,-151.967779,0.00020667,2]
[369670662,1751692251239,-151.0,0.00020667,2]
[369670663,1751692251248,-151.0,0.00020667,2]
[369670664,1751692251258,-155.0,0.00020667,2]
[369670665,1751692251267,-209.311524,0.00020671,2]
[369670666,1751692251277,-209.311524,0.00020671,2]
[369670667,1751692251286,-227.47482327,0.00020691,2]
[369670668,1751692251295,-500.0,0.00020691,2]
[369670669,1751692251304,-151.0,0.000207,3]
[369670670,1751692251314,-151.0,0.000207,3]
[369670671,1751692251323,-151.0,0.000207,4]
[369670672,1751692251332,-500.0,0.00020701,2]
[369670673,1751692251343,-319.31,0.0002071,2]
[369670674,1751692251352,-460.0,0.0002071,2]
[369670675,1751692251362,-756.76,0.0002071,2]
[369670676,1751692251372,-460.0,0.00020716,2]
[369670677,1751692251381,-460.0,0.00020716,2]
[369670678,1751692251390,-460.0,0.00020717,2]
[369670679,1751692251399,-460.0,0.00020717,2]
[369670680,1751692251409,-460.0,0.00020717,2]
[369670681,1751692251419,-1566.66,0.00020717,2]
[369670682,1751692251429,-1365.92,0.00020717,2]
[369670683,1751692251438,-460.0,0.00020717,2]
[369670684,1751692251448,-460.0,0.00020717,2]
[369670685,1751692251457,-1223.39,0.00020717,2]
[369670686,1751692251467,-228.26,0.00020717,2]
[369670687,1751692251477,-460.0,0.00020717,2]
[369670688,1751692251487,-1477.6,0.00020717,2]
[369670689,1751692251496,-460.0,0.00020717,2]
[369670690,1751692251506,-460.0,0.00020717,2]
[369670691,1751692251518,-582.83,0.00020717,2]
[369670692,1751692251527,-151.0,0.00020717,2]
[369670693,1751692251537,-696.46,0.00020717,2]
[369670694,1751692251546,-151.441121,0.00020717,2]
[369670695,1751692251557,-460.0,0.00020717,2]
[369670696,1751692251566,-236.41,0.00020717,2]
[369670697,1751692251575,-460.0,0.00020717,2]
[369670698,1751692251585,-151.0,0.00020717,2]
[369670699,1751692251595,-225.62,0.00020717,2]
[369670700,1751692251605,-460.0,0.00020717,2]
[369670701,1751692251614,-460.0,0.00020717,2]
[369670702,1751692251624,-341.62,0.00020717,2]
[369670703,1751692251633,-460.0,0.00020717,2]
[369670704,1751692251643,-460.0,0.00020718,2]
[369670705,1751692251652,-460.0,0.00020718,2]
[369670706,1751692251661,-460.0,0.00020718,2]
[369670707,1751692251671,-460.0,0.00020718,2]
[369670708,1751692251681,-460.0,0.00020718,2]
[369670709,1751692251691,-382.57,0.00020718,2]
[369670710,1751692251700,-462.60713675,0.00020718,2]
[369670711,1751692251710,-460.0,0.00020718,2]
[369670712,1751692251719,-357.29341718,0.00020718,2]
[369670713,1751692251729,-460.0,0.00020718,2]
[369670714,1751692251739,-460.0,0.00020718,2]
[369670715,1751692251748,-460.0,0.00020718,2]
[369670716,1751692251757,-460.0,0.00020718,2]
[369670717,1751692251767,-460.0,0.00020718,2]
[369670718,1751692251776,-460.0,0.00020718,2]
[369670719,1751692251785,-460.0,0.00020718,2]
[369670720,1751692251794,-460.0,0.00020718,2]
[369670721,1751692251804,-460.0,0.00020718,2]
[369670722,1751692251813,-410.79071139,0.00020718,2]
[369670723,1751692251823,-460.0,0.00020718,2]
[369670724,1751692251833,-460.0,0.00020718,2]
[369670725,1751692251843,-460.0,0.00020718,2]
[369670726,1751692251852,-574.64,0.00020718,2]
[369670727,1751692251862,-460.0,0.00020718,2]
[369670728,1751692251871,-460.0,0.00020718,2]
[369670729,1751692251881,-202.57,0.00020718,2]
[369670730,1751692251890,-464.4,0.00020718,2]
[369670731,1751692251900,-460.0,0.00020718,2]
[369670732,1751692251910,-244.21,0.00020718,2]
[369670733,1751692251919,-472.29,0.00020718,2]
[369670734,1751692252032,-460.0,0.00020718,2]
[369670735,1751692252042,-460.0,0.00020718,2]
[369670736,1751692252051,-460.0,0.00020718,2]
[369670737,1751692252060,-460.0,0.00020718,2]
[369670738,1751692252070,-460.0,0.00020718,2]
[369670739,1751692252079,-460.0,0.00020718,2]
[369670740,1751692252088,-460.0,0.00020718,2]
[369670741,1751692252098,-460.0,0.00020718,2]
[369670742,1751692252107,-151.0,0.00020718,2]
[369670743,1751692252117,-460.0,0.00020718,2]
[369670744,1751692252126,-460.0,0.00020718,2]
[369670745,1751692252135,-460.0,0.00020718,2]
[369670746,1751692252145,-460.0,0.00020718,2]
[369670747,1751692252155,-460.0,0.00020718,2]
[369670748,1751692252164,-460.0,0.00020718,2]
[369670749,1751692252173,-460.0,0.00020718,2]
[369670750,1751692252182,-460.0,0.00020718,2]
[369670751,1751692252191,-460.0,0.00020718,2]
[369670752,1751692252201,-460.0,0.00020718,2]
[369670753,1751692252210,-502.75,0.00020718,2]
[369670754,1751692252219,-460.0,0.00020718,2]
[369670755,1751692252228,-460.0,0.00020718,2]
[369670756,1751692252238,-460.0,0.00020718,2]
[369670757,1751692252247,-497.94606806,0.00020718,2]
[369670758,1751692252257,-460.0,0.00020718,2]
[369670759,1751692252266,-185.04450867,0.00020718,2]
[369670760,1751692252275,-164.4,0.00020718,2]
[369670761,1751692252284,-460.0,0.00020718,2]
[369670762,1751692252294,-460.0,0.00020718,2]
[369670763,1751692252303,-460.0,0.00020718,2]
[369670764,1751692252312,-460.0,0.00020718,2]
[369670765,1751692252321,-460.0,0.00020718,2]
[369670766,1751692252330,-460.0,0.00020718,2]
[369670767,1751692252339,-460.0,0.00020718,2]
[369670768,1751692252348,-460.0,0.00020718,2]
[369670769,1751692252357,-460.37,0.00020718,2]
[369670770,1751692252367,-460.0,0.00020718,2]
[369670771,1751692252375,-460.0,0.00020718,2]
[369670772,1751692252384,-460.0,0.00020718,2]
[369670773,1751692252393,-460.0,0.00020718,2]
[369670774,1751692252402,-460.0,0.00020718,2]
[369670775,1751692252411,-460.0,0.00020718,2]
[369670776,1751692252420,-460.0,0.00020718,2]
[369670777,1751692252430,-460.0,0.00020718,2]
[369670778,1751692252439,-460.0,0.00020718,2]
[369670779,1751692252449,-460.0,0.00020718,2]
[369670780,1751692252458,-460.0,0.00020718,2]
[369670781,1751692252468,-460.0,0.00020718,2]
[369670782,1751692252477,-460.0,0.00020718,2]
[369670783,1751692252486,-460.0,0.00020718,2]
[369670784,1751692252496,-460.0,0.00020718,2]
[369670785,1751692252505,-460.0,0.00020718,2]
[369670786,1751692252514,-460.0,0.00020718,2]
[369670787,1751692252524,-460.0,0.00020718,2]
[369670788,1751692252533,-510.80393967,0.00020718,2]
[369670789,1751692252543,-460.0,0.0002072,2]
[369670790,1751692252554,-462.80479555,0.0002072,2]
[369670791,1751692252563,-460.0,0.0002072,2]
[369670792,1751692252573,-464.78676018,0.0002072,2]
[369670793,1751692252582,-460.0,0.0002072,2]
[369670794,1751692252591,-461.37576427,0.0002072,2]
[369670795,1751692252601,-460.0,0.0002072,2]
[369670796,1751692252610,-1000.0,0.0002072,2]
[369670797,1751692252619,-462.35951816,0.0002072,2]
[369670798,1751692252628,-460.0,0.0002072,2]
[369670799,1751692252637,-460.0,0.0002072,2]
[369670800,1751692252646,-460.0,0.0002072,2]
[369670801,1751692252656,-463.81196564,0.0002072,2]
[369670802,1751692252665,-460.0,0.0002072,2]
[369670803,1751692252674,-460.0,0.0002072,2]
[369670804,1751692252683,-460.0,0.0002072,2]
[369670805,1751692252692,-460.0,0.0002072,2]
[369670806,1751692252703,-460.0,0.0002072,2]
[369670807,1751692252712,-460.0,0.0002072,2]
[369670808,1751692252721,-460.0,0.0002072,2]
[369670809,1751692252730,-562.3,0.0002072,2]
[369670810,1751692252743,-460.0,0.0002072,2]
[369670811,1751692252753,-1360.54,0.0002072,2]
[369670812,1751692252762,-460.0,0.0002072,2]
[369670813,1751692252771,-509.84,0.0002072,2]
[369670814,1751692252780,-534.18,0.0002072,2]
[369670815,1751692252791,-460.0,0.0002072,2]
[369670816,1751692252800,-460.0,0.0002072,2]
[369670817,1751692252809,-799.93,0.0002072,2]
[369670818,1751692252819,-657.82,0.0002072,2]
[369670819,1751692252828,-460.0,0.00020743,2]
[369670820,1751692252837,-460.0,0.00020743,2]
[369670821,1751692252846,-460.0,0.00020743,2]
[369670822,1751692252856,-460.0,0.00020743,2]
[369670823,1751692252864,-460.0,0.00020743,2]
[369670824,1751692252874,-460.0,0.00020743,2]
[369670825,1751692252883,-460.0,0.00020743,2]
[369670826,1751692252892,-460.0,0.00020743,2]
[369670827,1751692252901,-460.0,0.00020743,2]
[369670828,1751692252910,-460.0,0.00020743,2]
[369670829,1751692252919,-460.0,0.00020743,2]
[369670830,1751692252929,-460.0,0.00020743,2]
[369670831,1751692252938,-460.0,0.00020743,2]
[369670832,1751692252948,-460.0,0.00020743,2]
[369670833,1751692252958,-460.0,0.00020743,2]
[369670834,1751692252967,-151.0,0.00020743,2]
[369670835,1751692252977,-151.0,0.00020743,2]
[369670836,1751692252986,-524.86,0.00020743,2]
[369670837,1751692252995,-151.0,0.00020743,2]
[369670838,1751692253004,-460.0,0.00020743,2]
[369670839,1751692253013,-460.0,0.00020743,2]
[369670840,1751692253024,-151.0,0.00020743,2]
[369670841,1751692253034,-460.0,0.00020743,2]
[369670842,1751692253043,-594.95,0.00020743,2]
[369670843,1751692253053,-460.0,0.00020743,2]
[369670844,1751692253062,-460.0,0.00020743,2]
[369670845,1751692253072,-923.52,0.00020743,2]
[369670846,1751692253082,-460.0,0.00020743,2]
[369670847,1751692253091,-2247.36,0.00020743,2]
[369670848,1751692253100,-151.0,0.00020743,2]
[369670849,1751692253109,-460.0,0.00020744,2]
[369670850,1751692253118,-460.0,0.00020744,2]
[369670851,1751692253127,-151.0,0.00020744,2]
[369670852,1751692253137,-209.311524,0.00020745,2]
[369670853,1751692253146,-209.311524,0.00020745,2]
[369670854,1751692253155,-253.28341615,0.00020762,3]
[369670855,1751692253164,-151.0,0.000208,3]
[369670856,1751692253173,-8525.2051085,0.00020807,2]
[369670857,1751692253182,-503.05,0.00020819,2]
[369670858,1751692253192,-235.63,0.00020819,2]
[369670859,1751692253202,-460.0,0.00020819,2]
[369670860,1751692253211,-282.23087998,0.00020819,2]
[369670861,1751692253220,-588.01,0.00020819,2]
[369670862,1751692253230,-460.0,0.00020819,2]
[369670863,1751692253239,-460.0,0.00020819,2]
[369670864,1751692253248,-460.0,0.00020819,2]
[369670865,1751692253258,-460.0,0.00020819,2]
[369670866,1751692253267,-460.0,0.00020819,2]
[369670867,1751692253277,-460.0,0.00020819,2]
[369670868,1751692253286,-460.0,0.00020819,2]
[369670869,1751692253295,-460.0,0.00020819,2]
[369670870,1751692253304,-460.0,0.00020819,2]
[369670871,1751692253314,-460.0,0.00020819,2]
[369670872,1751692253323,-654.96,0.00020819,2]
[369670873,1751692253333,-151.0,0.00020819,2]
[369670874,1751692253343,-151.0,0.00020819,2]
[369670875,1751692253352,-464.0505203,0.00020819,2]
[369670876,1751692253361,-460.0,0.00020819,2]
[369670877,1751692253371,-460.0,0.00020819,2]
[369670878,1751692253380,-460.0,0.00020819,2]
[369670879,1751692253390,-512.39,0.00020819,2]
[369670880,1751692253399,-557.75,0.00020819,2]
[369670881,1751692253409,-249.49,0.00020819,2]
[369670882,1751692253418,-460.0,0.00020819,2]
[369670883,1751692253427,-460.0,0.00020819,2]
[369670884,1751692253436,-244.81,0.00020819,2]
[369670885,1751692253446,-460.0,0.00020819,2]
[369670886,1751692253455,-460.0,0.00020819,2]
[369670887,1751692253464,-460.0,0.00020819,2]
[369670888,1751692253474,-460.0,0.00020819,2]
[369670889,1751692253483,-460.0,0.00020819,2]
[369670890,1751692253492,-460.0,0.0002082,2]
[369670891,1751692253501,-460.0,0.0002082,2]
[369670892,1751692253512,-460.0,0.0002082,2]
[369670893,1751692253524,-460.0,0.0002082,2]
[369670894,1751692253533,-460.0,0.0002082,2]
[369670895,1751692253542,-460.0,0.0002082,2]
[369670896,1751692253551,-460.0,0.0002082,2]
[369670897,1751692253562,-460.0,0.0002082,2]
[369670898,1751692253571,-460.0,0.0002082,2]
[369670899,1751692253580,-460.0,0.0002082,2]
[369670900,1751692253590,-475.12,0.0002082,2]
[369670901,1751692253599,-478.10598947,0.0002082,2]
[369670902,1751692253609,-460.0,0.0002082,2]
[369670903,1751692253618,-460.0,0.0002082,2]
[369670904,1751692253628,-460.0,0.0002082,2]
[369670905,1751692253637,-460.0,0.0002082,2]
[369670906,1751692253646,-460.0,0.0002082,2]
[369670907,1751692253655,-460.0,0.0002082,2]
[369670908,1751692253664,-460.0,0.0002082,2]
[369670909,1751692253674,-460.0,0.0002082,2]
[369670910,1751692253683,-460.0,0.0002082,2]
[369670911,1751692253692,-460.0,0.0002082,2]
[369670912,1751692253701,-338.85928075,0.0002082,2]
[369670913,1751692253711,-460.0,0.0002082,2]
[369670914,1751692253720,-155.66144773,0.0002082,2]
[369670915,1751692253729,-362.34885631,0.0002082,2]
[369670916,1751692253738,-460.0,0.0002082,2]
[369670917,1751692253748,-460.0,0.0002082,2]
[369670918,1751692253757,-460.0,0.0002082,2]
[369670919,1751692253766,-460.0,0.0002082,2]
[369670920,1751692253872,-460.0,0.0002082,2]
[369670921,1751692253882,-565.59,0.0002082,2]
[369670922,1751692253891,-460.0,0.0002082,2]
[369670923,1751692253900,-460.0,0.0002082,2]
[369670924,1751692253909,-460.0,0.0002082,2]
[369670925,1751692253918,-460.0,0.0002082,2]
[369670926,1751692253927,-460.0,0.0002082,2]
[369670927,1751692253937,-460.0,0.0002082,2]
[369670928,1751692253945,-460.0,0.0002082,2]
[369670929,1751692253955,-460.0,0.0002082,2]
[369670930,1751692253964,-460.0,0.0002082,2]
[369670931,1751692253973,-460.0,0.0002082,2]
[369670932,1751692253983,-460.0,0.0002082,2]
[369670933,1751692253992,-460.0,0.0002082,2]
[369670934,1751692254002,-460.0,0.0002082,2]
[369670935,1751692254011,-460.0,0.0002082,2]
[369670936,1751692254021,-460.0,0.0002082,2]
[369670937,1751692254031,-460.0,0.0002082,2]
[369670938,1751692254041,-460.0,0.0002082,2]
[369670939,1751692254050,-460.0,0.0002082,2]
[369670940,1751692254059,-460.0,0.0002082,2]
[369670941,1751692254068,-460.0,0.0002082,2]
[369670942,1751692254078,-460.0,0.0002082,2]
[369670943,1751692254088,-270.18818428,0.0002082,2]
[369670944,1751692254097,-3022.26262583,0.00020821,2]
[369670945,1751692254106,-460.0,0.00020821,2]
[369670946,1751692254115,-460.0,0.00020821,2]
[369670947,1751692254124,-460.0,0.00020821,2]
[369670948,1751692254134,-460.0,0.00020821,2]
[369670949,1751692254143,-151.0,0.00020821,2]
[369670950,1751692254153,-460.0,0.00020821,2]
[369670951,1751692254162,-460.0,0.00020821,2]
[369670952,1751692254171,-151.0,0.00020821,2]
[369670953,1751692254181,-460.0,0.00020821,2]
[369670954,1751692254191,-460.0,0.00020821,2]
[369670955,1751692254200,-460.0,0.00020821,2]
[369670956,1751692254209,-460.0,0.00020821,2]
[369670957,1751692254219,-211.600544,0.00020821,2]
[369670958,1751692254228,-282.55,0.00020821,2]
[369670959,1751692254237,-211.600544,0.00020821,2]
[369670960,1751692254246,-606.76,0.00020821,2]
[369670961,1751692254255,-460.0,0.00020821,2]
[369670962,1751692254264,-296.93542413,0.00020821,2]
[369670963,1751692254274,-209.311524,0.0002084,2]
[369670964,1751692254283,-209.311524,0.0002084,2]
[369670965,1751692254292,-209.311524,0.0002084,2]
[369670966,1751692254301,-209.311524,0.0002084,2]
[369670967,1751692254311,-151.0,0.000209,4]
[369670968,1751692254320,-151.0,0.00020919,2]
[369670969,1751692254330,-151.0,0.00020919,2]
[369670970,1751692254339,-151.0,0.00020919,2]
[369670971,1751692254348,-152.044068,0.00020919,2]
[369670972,1751692254357,-151.0,0.00020919,2]
[369670973,1751692254366,-151.0,0.00020919,2]
[369670974,1751692254376,-151.0,0.00020919,2]
[369670975,1751692254385,-151.0,0.00020919,2]
[369670976,1751692254395,-151.0,0.00020919,2]
[369670977,1751692254404,-154.084669,0.00020919,2]
[369670978,1751692254413,-151.0,0.00020919,2]
[369670979,1751692254423,-151.0,0.00020919,2]
[369670980,1751692254432,-151.0,0.00020919,2]
[369670981,1751692254442,-179.525844,0.00020919,2]
[369670982,1751692254451,-179.525844,0.00020919,2]
[369670983,1751692254460,-151.0,0.00020919,2]
[369670984,1751692254469,-151.0,0.00020919,2]
[369670985,1751692254478,-151.0,0.00020921,2]
[369670986,1751692254488,-151.0,0.00020921,2]
[369670987,1751692254497,-253.28341615,0.00020934,4]
[369670988,1751692254507,-151.0,0.00020941,2]
[369670989,1751692254516,-151.0,0.00020941,2]
[369670990,1751692254525,-252.975542,0.00020941,2]
[369670991,1751692254536,-252.975542,0.00020941,2]
[369670992,1751692254546,-151.0,0.00020941,2]
[369670993,1751692254556,-209.311524,0.00020942,2]
[369670994,1751692254565,-209.311524,0.00020942,2]
[369670995,1751692254575,-168.0,0.00020958,2]
[369670996,1751692254584,-503.55238923,0.00020968,2]
[369670997,1751692254594,-1001.17104194,0.00020969,2]
[369670998,1751692254603,-1005.24276177,0.00020969,2]
[369670999,1751692254612,-1000.0,0.00020969,2]
[369671000,1751692254622,-502.82216116,0.00020969,2]
[369671001,1751692254632,-1000.0,0.00020969,2]
[369671002,1751692254642,-1002.20360325,0.00020969,2]
[369671003,1751692254651,-1006.75942782,0.00020969,2]
[369671004,1751692254660,-460.0,0.00020984,2]
[369671005,1751692254670,-756.76,0.00020984,2]
[369671006,1751692254680,-333.27,0.0002099,2]
[369671007,1751692254689,-589.42669101,0.0002099,2]
[369671008,1751692254699,-460.0,0.00020991,2]
[369671009,1751692254708,-1566.66,0.00020991,2]
[369671010,1751692254718,-1365.92,0.00020991,2]
[369671011,1751692254727,-460.0,0.00020991,2]
[369671012,1751692254736,-460.0,0.00020991,2]
[369671013,1751692254745,-1223.39,0.00020991,2]
[369671014,1751692254754,-460.0,0.00020991,2]
[369671015,1751692254763,-1477.6,0.00020991,2]
[369671016,1751692254772,-460.0,0.00020991,2]
[369671017,1751692254782,-460.0,0.00020991,2]
[369671018,1751692254792,-582.83,0.00020991,2]
[369671019,1751692254802,-696.46,0.00020991,2]
[369671020,1751692254812,-460.0,0.00020991,2]
[369671021,1751692254821,-460.0,0.00020991,2]
[369671022,1751692254831,-460.0,0.00020991,2]
[369671023,1751692254840,-460.0,0.00020991,2]
[369671024,1751692254850,-460.0,0.00020991,2]
[369671025,1751692254859,-460.0,0.00020992,2]
[369671026,1751692254868,-460.0,0.00020992,2]
[369671027,1751692254878,-460.0,0.00020992,2]
[369671028,1751692254887,-460.0,0.00020992,2]
[369671029,1751692254897,-460.0,0.00020992,2]
[369671030,1751692254906,-460.0,0.00020992,2]
[369671031,1751692254915,-460.0,0.00020992,2]
[369671032,1751692254925,-460.0,0.00020992,2]
[369671033,1751692254934,-579.65,0.00020992,2]
[369671034,1751692254943,-188.45567094,0.00020992,2]
[369671035,1751692254953,-363.5,0.00020992,2]
[369671036,1751692254962,-460.0,0.00020992,2]
[369671037,1751692254971,-460.0,0.00020992,2]
[369671038,1751692254980,-460.0,0.00020992,2]
[369671039,1751692254990,-460.0,0.00020992,2]
[369671040,1751692254999,-234.37902532,0.00020992,2]
[369671041,1751692255009,-460.0,0.00020992,2]
[369671042,1751692255020,-419.93480925,0.00020992,2]
[369671043,1751692255029,-460.0,0.00020992,2]
[369671044,1751692255038,-460.0,0.00020992,2]
[369671045,1751692255047,-460.0,0.00020992,2]
[369671046,1751692255057,-460.0,0.00020992,2]
[369671047,1751692255066,-460.0,0.00020992,2]
[369671048,1751692255075,-460.0,0.00020992,2]
[369671049,1751692255085,-460.0,0.00020992,2]
[369671050,1751692255094,-460.0,0.00020992,2]
[369671051,1751692255103,-460.0,0.00020992,2]
[369671052,1751692255112,-460.0,0.00020992,2]
[369671053,1751692255122,-460.0,0.00020992,2]
[369671054,1751692255131,-460.0,0.00020992,2]
[369671055,1751692255140,-460.0,0.00020992,2]
[369671056,1751692255150,-460.0,0.00020992,2]
[369671057,1751692255159,-460.0,0.00020992,2]
[369671058,1751692255168,-460.0,0.00020992,2]
[369671059,1751692255178,-460.0,0.00020992,2]
[369671060,1751692255188,-460.0,0.00020992,2]
[369671061,1751692255197,-460.0,0.00020992,2]
[369671062,1751692255207,-460.0,0.00020992,2]
[369671063,1751692255216,-460.0,0.00020992,2]
[369671064,1751692255226,-334.44985561,0.00020992,2]
[369671065,1751692255235,-460.37,0.00020992,2]
[369671066,1751692255244,-460.0,0.00020992,2]
[369671067,1751692255253,-460.0,0.00020992,2]
[369671068,1751692255263,-460.0,0.00020992,2]
[369671069,1751692255271,-460.0,0.00020992,2]
[369671070,1751692255280,-460.0,0.00020992,2]
[369671071,1751692255290,-460.0,0.00020992,2]
[369671072,1751692255299,-460.0,0.00020992,2]
[369671073,1751692255309,-460.0,0.00020992,2]
[369671074,1751692255318,-460.0,0.00020992,2]
[369671075,1751692255327,-460.0,0.00020992,2]
[369671076,1751692255338,-460.0,0.00020992,2]
[369671077,1751692255347,-460.0,0.00020992,2]
[369671078,1751692255357,-460.0,0.00020992,2]
[369671079,1751692255366,-460.0,0.00020992,2]
[369671080,1751692255376,-460.0,0.00020992,2]
[369671081,1751692255386,-460.0,0.00020992,2]
[369671082,1751692255395,-460.0,0.00020992,2]
[369671083,1751692255404,-460.0,0.00020992,2]
[369671084,1751692255414,-464.04316064,0.00020994,2]
[369671085,1751692255423,-460.0,0.00020994,2]
[369671086,1751692255433,-460.0,0.00020994,2]
[369671087,1751692255442,-451.65533668,0.00020994,2]
[369671088,1751692255453,-1002.61451188,0.00020994,2]
[369671089,1751692255462,-460.0,0.00020994,2]
[369671090,1751692255472,-285.13137288,0.00020994,2]
[369671091,1751692255481,-461.52463118,0.00020994,2]
[369671092,1751692255588,-442.31031078,0.00020994,2]
[369671093,1751692255599,-460.0,0.00020994,2]
[369671094,1751692255616,-460.0,0.00020994,2]
[369671095,1751692255625,-460.0,0.00020994,2]
[369671096,1751692255635,-460.0,0.00020994,2]
[369671097,1751692255644,-460.0,0.00020994,2]
[369671098,1751692255653,-460.0,0.00020994,2]
[369671099,1751692255663,-460.0,0.00020994,2]
[369671100,1751692255672,-1360.54,0.00020994,2]
[369671101,1751692255681,-460.0,0.00020994,2]
[369671102,1751692255690,-509.84,0.00020994,2]
[369671103,1751692255699,-534.18,0.00020994,2]
[369671104,1751692255709,-460.0,0.00020994,2]
[369671105,1751692255719,-460.0,0.00020994,2]
[369671106,1751692255728,-799.93,0.00020994,2]
[369671107,1751692255738,-657.82,0.00020994,2]
[369671108,1751692255747,-168.0,0.00020994,2]
[369671109,1751692255758,-376.92890423,0.00020998,2]
[369671110,1751692255766,-74710.1928131,0.00021,2]
[369671111,1751692255944,-460.0,0.00019798,2]
[369671112,1751692255954,-164.20491612,0.00021,2]
[369671113,1751692256229,-460.0,0.00019888,2]
[369671114,1751692256239,-462.29762852,0.00019896,2]
[369671115,1751692256248,-240.28230354,0.00019896,2]
[369671116,1751692256448,-74.12585977,0.00019896,2]
[369671117,1751692256457,-500.0,0.00019997,2]
[369671118,1751692256467,-500.0,0.00019997,2]
[369671119,1751692256476,-158.74,0.00019998,2]
[369671120,1751692256485,-460.0,0.00020162,2]
[369671121,1751692256494,-81.81994823,0.00020436,2]
[369671122,1751692256506,-261.62005177,0.00020436,2]
[369671123,1751692256516,-414.87545999,0.00021,2]
[369671124,1751692256527,-15866.62281083,0.00021,2]
[369671125,1751692256538,-2750.50978165,0.00021,2]
[369671126,1751692256550,-482.01845861,0.00021,2]
[369671127,1751692256665,-460.0,0.00019896,2]
[369671128,1751692256674,-460.0,0.0002017,2]
[369671129,1751692256683,-23720.53701828,0.00021,2]
[369671130,1751692257073,-24475.03778298,0.00021,2]
[369671131,1751692257092,-770.18575528,0.00021,2]
[369671132,1751692257105,-540775.65788916,0.00021,2]
[369671133,1751692257117,-3518.31223734,0.00021,2]
[369671134,1751692257128,-3691.45867788,0.00021,2]
[369671135,1751692257139,-702.06664328,0.00021,2]
[369671137,1751692284334,167.192,0.00013699,2]
[369671138,1751692338078,-306.28107585,0.000189,2]
[369671139,1751692338101,-4579.497022,0.000196,2]
[369671140,1751692338124,-300.0,0.00019797,2]
[369671141,1751692338145,-460.0,0.00019798,2]
[369671142,1751692338167,-460.0,0.00019798,2]
[369671143,1751692338188,-162.09,0.00019798,2]
[369671144,1751692338209,-461.14349152,0.00019798,2]
[369671145,1751692338229,-460.98226337,0.00019798,2]
[369671146,1751692338250,-454.00614726,0.00019798,2]
[369671147,1751692541161,-157.11410388,0.00019215,2]
[369671148,1751692541182,-260.94978068,0.0001941,2]
[369671149,1751692541356,-2.93611544,0.00019698,2]
[369671150,1751692869375,-163.4814915,0.00018796,2]
[369671151,1751692869396,-204.1873839,0.000189,2]
[369671152,1751692869418,-4431.0,0.000195,2]
[369671153,1751692869439,-300.0,0.00019696,2]
[369671154,1751692869459,-1200.0,0.00019696,2]
[369671155,1751692869479,-252.0,0.00019697,2]
[369671156,1751692869498,-190.0,0.00019697,2]
[369671157,1751692869519,-300.0,0.00019697,2]
[369671158,1751692869539,-759.0,0.00019697,2]
[369671159,1751692869560,-179.57795207,0.00019698,2]
[369671160,1751692869581,-185.95013632,0.00019698,2]
[369671161,1751692869602,-4622.80303621,0.00019698,2]